bitfinex-derivatives/quotes_SOLF0:USTF0_20251208
["timestamp","ask_amount","ask_price","bid_price","bid_amount"]
[1765201039785,3.11,138.71,138.67,3.17843635]
[1765201040184,3.11,138.73,138.69,3.13]
[1765201040390,3.11,138.73,138.71,3.13]
[1765201040590,3.11,138.73,138.71,3.18116424]
[1765201040789,3.11,138.73,138.71,0.05116424]
[1765201041877,3.11,138.74,138.71,9.66946424]
[1765201042487,3.11,138.74,138.71,6.53946424]
[1765201042684,3.11,138.74,138.71,0.05116424]
[1765201043084,6.4867,138.75,138.72,3.13]
[1765201043285,3.11,138.79,138.73,3.13]
[1765201043585,3.11,138.79,138.75,0.05475329]
[1765201044592,3.11,138.78,138.75,0.05475329]
[1765201044785,3.11,138.76,138.75,0.05475329]
[1765201044985,3.11,138.76,138.69,1.56973591]
[1765201045191,3.11,138.74,138.69,1.56973591]
[1765201045496,3.11,138.72,138.66,1.56973591]
[1765201045884,0.05015297,138.7,138.68,0.04842617]
[1765201046086,3.16015297,138.7,138.68,0.04842617]
[1765201050489,0.05015297,138.7,138.68,9.66812617]
[1765201050691,0.05015297,138.7,138.69,3.13]
[1765201050890,0.05015297,138.7,138.68,6.53812617]
[1765201051196,3.16015297,138.7,138.68,0.04842617]
[1765201056701,3.11,138.69,138.68,0.04842617]
[1765201059003,3.11,138.67,138.63,6.4918]
[1765201059910,0.05315434,138.66,138.65,3.13]
[1765201060113,11.16903591,138.7,138.65,3.13]
[1765201060114,0.05161259,138.67,138.65,3.13]
[1765201061307,3.16161259,138.67,138.64,0.04650797]
[1765201062199,0.05161259,138.67,138.64,3.17650797]
[1765201062800,0.05161259,138.67,138.65,9.6211]
[1765201063816,3.16161259,138.67,138.65,6.4911]
[1765201067517,3.16161259,138.67,138.64,3.17650797]
[1765201068515,3.16161259,138.67,138.64,9.66820797]
[1765201068715,3.16161259,138.67,138.64,0.04650797]
[1765201070015,2.99,138.66,138.64,0.04650797]
[1765201072507,2.99,138.65,138.64,0.04650797]
[1765201074514,2.99,138.66,138.64,0.04650797]
[1765201076618,2.99,138.66,138.64,6.53820797]
[1765201077618,2.99,138.66,138.64,9.60820797]
[1765201077809,2.99,138.66,138.64,6.53820797]
[1765201079811,3.06161259,138.67,138.64,9.83820797]
[1765201080707,0.05161259,138.67,138.66,3.3]
[1765201080906,0.05161259,138.67,138.65,9.7912]
[1765201081220,3.06161259,138.67,138.65,9.7912]
[1765201081421,0.05161259,138.67,138.65,9.7912]
[1765201081817,3.06161259,138.67,138.65,6.4912]
[1765201083719,3.01,138.66,138.64,0.04650797]
[1765201084422,3.01,138.64,138.6,9.7931]
[1765201084821,3.01,138.64,138.58,1.56973591]
[1765201085120,3.01,138.63,138.59,3.3]
[1765201085516,3.06447134,138.62,138.6,0.05263496]
[1765201092020,3.01,138.61,138.6,0.05263496]
[1765201092523,3.01,138.61,138.54,3.3]
[1765201092524,3.01,138.58,138.54,3.3]
[1765201093022,3.01,138.58,138.55,6.4958]
[1765201093227,3.01,138.58,138.55,9.7958]
[1765201093430,3.05925997,138.58,138.55,9.84782333]
[1765201095720,3.05925997,138.58,138.55,0.05202333]
[1765201096922,3.01,138.56,138.55,0.05202333]
[1765201102430,3.01,138.63,138.59,3.12]
[1765201102631,3.01,138.63,138.57,2.4542233]
[1765201102826,3.01,138.63,138.57,5.5742233]
[1765201103027,3.01,138.62,138.58,9.6144]
[1765201103428,3.06349306,138.61,138.59,0.04680316]
[1765201105132,0.05349306,138.61,138.59,9.66060316]
[1765201105333,0.05349306,138.61,138.6,5.5742233]
[1765201109842,3.06349306,138.61,138.59,6.54060316]
[1765201110242,3.06349306,138.61,138.59,0.04680316]
[1765201111342,3.01,138.6,138.59,0.04680316]
[1765201112137,3.01,138.59,138.54,8.9502233]
[1765201112451,3.01,138.59,138.54,12.0702233]
[1765201112933,3.01,138.58,138.54,9.616]
[1765201113132,3.01,138.56,138.55,0.05478901]
[1765201116147,3.01,138.56,138.51,6.4974]
[1765201117145,3.01,138.56,138.52,0.04700271]
[1765201117537,3.01,138.55,138.52,0.04700271]
[1765201119548,3.01,138.53,138.52,0.04700271]
[1765201119946,3.01,138.53,138.46,9.6198]
[1765201119947,3.01,138.53,138.46,3.12]
[1765201120149,3.01,138.53,138.43,3.12]
[1765201120150,3.01,138.48,138.43,3.12]
[1765201121048,3.06232297,138.47,138.44,3.16668063]
[1765201122146,3.06232297,138.47,138.44,0.04668063]
[1765201122344,0.05232297,138.47,138.45,3.12]
[1765201122741,0.05232297,138.47,138.44,9.66758063]
[1765201123749,0.05232297,138.47,138.45,3.12]
[1765201125246,0.05232297,138.47,138.44,6.54758063]
[1765201125247,9.5071,138.53,138.46,3.12]
[1765201125551,3.01,138.52,138.46,3.12]
[1765201125950,3.01,138.52,138.48,3.12]
[1765201126156,0.05105806,138.51,138.49,0.04744343]
[1765201126347,3.06105806,138.51,138.49,0.04744343]
[1765201127656,0.05105806,138.51,138.49,3.16744343]
[1765201128548,0.05105806,138.51,138.49,9.66604343]
[1765201128759,0.05105806,138.51,138.5,3.15]
[1765201130569,0.05105806,138.51,138.49,0.04744343]
[1765201130767,3.19105806,138.51,138.49,0.04744343]
[1765201135963,9.68895806,138.51,138.49,0.04744343]
[1765201136161,3.14,138.5,138.49,0.04744343]
[1765201136668,3.14,138.49,138.44,9.6508]
[1765201137561,0.04840785,138.48,138.45,9.69840577]
[1765201137763,0.04840785,138.48,138.46,3.15]
[1765201139557,0.04840785,138.48,138.46,9.65]
[1765201140365,0.04840785,138.48,138.47,3.29]
[1765201143270,0.04840785,138.48,138.46,6.5]
[1765201143464,0.04840785,138.48,138.46,9.79]
[1765201144479,3.22840785,138.48,138.45,0.04800577]
[1765201145864,9.72770785,138.48,138.45,0.04800577]
[1765201146770,3.18,138.47,138.45,0.04800577]
[1765201148871,3.18,138.46,138.45,0.04800577]
[1765201149669,3.18,138.47,138.45,3.33800577]
[1765201150970,3.18,138.47,138.45,0.04800577]
[1765201152477,9.6797,138.47,138.45,0.04800577]
[1765201152672,3.18,138.46,138.45,0.04800577]
[1765201152864,3.18,138.45,138.38,1.57436929]
[1765201153064,4.75436929,138.44,138.37,3.29]
[1765201153764,4.75436929,138.44,138.39,0.05476523]
[1765201153966,3.22843874,138.42,138.39,3.34476523]
[1765201154272,0.04843874,138.42,138.4,3.29]
[1765201154467,0.04843874,138.42,138.4,4.86436929]
[1765201154772,0.04843874,138.42,138.41,3.29]
[1765201157581,0.04843874,138.42,138.41,4.86436929]
[1765201157772,61.42,138.47,138.44,3.29]
[1765201157975,3.18,138.48,138.44,3.29]
[1765201158678,0.05557215,138.47,138.45,0.05052769]
[1765201158880,0.05557215,138.47,138.45,9.63102769]
[1765201161477,3.34557215,138.47,138.45,6.55102769]
[1765201162675,3.34557215,138.47,138.45,0.05052769]
[1765201163381,4.86436929,138.46,138.45,0.05052769]
[1765201163886,3.34557215,138.47,138.45,0.05052769]
[1765201165489,3.29,138.46,138.45,0.05052769]
[1765201167284,0.05557215,138.47,138.45,0.05052769]
[1765201167692,3.34557215,138.47,138.45,0.05052769]
[1765201168392,3.29,138.46,138.45,0.05052769]
[1765201170284,4.86436929,138.46,138.45,0.05052769]
[1765201173586,3.29,138.46,138.45,0.05052769]
[1765201175392,4.86436929,138.46,138.45,0.05052769]
[1765201179893,3.34557215,138.47,138.45,3.13052769]
[1765201180389,0.05557215,138.47,138.45,3.13052769]
[1765201181092,0.05557215,138.47,138.46,3.08]
[1765201181585,61.44,138.53,138.48,3.08]
[1765201181784,64.73,138.53,138.48,4.65436929]
[1765201181990,64.73,138.53,138.49,3.08]
[1765201182699,0.04836795,138.52,138.5,3.13100601]
[1765201183794,3.33836795,138.52,138.5,0.05100601]
[1765201184191,3.29,138.51,138.5,0.05100601]
[1765201185995,3.29,138.49,138.46,3.08]
[1765201186195,3.29,138.47,138.42,3.08]
[1765201186398,3.29,138.45,138.42,3.08]
[1765201187098,3.34328404,138.45,138.42,3.13229732]
[1765201187504,3.34328404,138.45,138.42,9.63429732]
[1765201189304,0.05328404,138.45,138.43,9.7713]
[1765201189498,0.05328404,138.45,138.44,3.27]
[1765201191209,3.25328404,138.45,138.43,6.5013]
[1765201191401,0.05328404,138.45,138.43,9.7713]
[1765201193009,0.05328404,138.45,138.42,3.32229732]
[1765201194503,0.05328404,138.45,138.42,9.82429732]
[1765201194698,0.05328404,138.45,138.43,3.27]
[1765201196305,0.05328404,138.45,138.43,9.7714]
[1765201196508,0.05328404,138.45,138.44,3.27]
[1765201196700,61.44,138.49,138.44,3.27]
[1765201196901,61.44,138.49,138.46,3.27]
[1765201197704,61.48627517,138.49,138.46,3.31608953]
[1765201198506,61.48627517,138.49,138.47,3.27]
[1765201198911,0.04627517,138.49,138.47,3.27]
[1765201199210,3.13627517,138.49,138.46,3.34608953]
[1765201199913,3.13627517,138.49,138.46,0.04608953]
[1765201200098,3.09,138.48,138.46,0.04608953]
[1765201200310,6.5012,138.44,138.39,16.42507708]
[1765201200519,3.09,138.43,138.39,6.5033]
[1765201200721,3.09,138.43,138.39,9.8033]
[1765201201121,9.5916,138.43,138.39,3.3]
[1765201201316,0.05387923,138.42,138.4,0.04720797]
[1765201202220,9.64597923,138.42,138.4,0.04720797]
[1765201202426,3.09,138.41,138.4,0.04720797]
[1765201204727,3.09,138.41,138.35,3.3]
[1765201205122,64.53,138.43,138.38,3.3]
[1765201205716,3.13917085,138.42,138.39,0.04672873]
[1765201207533,3.09,138.4,138.39,0.04672873]
[1765201212632,9.5928,138.41,138.39,0.04672873]
[1765201213134,3.09,138.41,138.39,0.04672873]
[1765201214829,0.04917085,138.42,138.39,3.34672873]
[1765201215230,3.13917085,138.42,138.39,3.34672873]
[1765201215833,3.09,138.4,138.39,0.04672873]
[1765201221441,9.5228,138.41,138.39,0.04672873]
[1765201221641,3.02,138.4,138.39,0.04672873]
[1765201224838,9.5228,138.41,138.39,0.04672873]
[1765201226847,3.02,138.4,138.39,0.04672873]
[1765201227344,3.02,138.38,138.32,3.12]
[1765201227552,3.02,138.37,138.32,3.12]
[1765201227941,61.46,138.38,138.34,3.12]
[1765201228136,0.05426349,138.37,138.36,3.12]
[1765201228952,3.07426349,138.37,138.35,0.04861537]
[1765201229254,3.07426349,138.37,138.3,3.12]
[1765201229759,3.07426349,138.37,138.33,3.12]
[1765201230349,9.57886349,138.37,138.34,0.04860759]
[1765201230544,3.02,138.36,138.34,0.04860759]
[1765201230857,6.55886349,138.37,138.34,3.16860759]
[1765201230858,0.05426349,138.37,138.34,3.16860759]
[1765201231654,3.07426349,138.37,138.34,3.16860759]
[1765201232145,3.07426349,138.37,138.34,0.04860759]
[1765201232459,3.02,138.32,138.25,3.12]
[1765201232655,3.02,138.31,138.25,3.12]
[1765201232852,3.02,138.31,138.22,6.5111]
[1765201233158,3.02,138.31,138.23,3.12]
[1765201233343,0.05060551,138.28,138.25,3.17384143]
[1765201236151,3.07060551,138.28,138.25,0.05384143]
[1765201236356,3.07060551,138.28,138.19,3.12]
[1765201236357,3.02,138.26,138.19,3.12]
[1765201236656,101.30100551,138.28,138.19,3.12]
[1765201236657,6.5086,138.28,138.19,3.12]
[1765201236854,64.5,138.29,138.21,3.12]
[1765201237043,61.48,138.29,138.22,3.12]
[1765201237244,0.05055096,138.27,138.25,3.12]
[1765201237450,3.02,138.32,138.25,3.17479721]
[1765201237752,101.1928,138.36,138.25,3.17479721]
[1765201237753,61.48,138.36,138.27,104.3687]
[1765201237953,61.48,138.36,138.28,3.12]
[1765201238255,64.5,138.36,138.28,3.12]
[1765201238553,0.04937192,138.33,138.31,3.17404774]
[1765201238744,3.02,138.39,138.31,3.17404774]
[1765201239356,3.02,138.37,138.31,3.17404774]
[1765201239651,0.05383905,138.35,138.31,3.17404774]
[1765201240246,3.07383905,138.35,138.31,3.17404774]
[1765201240552,3.07383905,138.35,138.31,0.05404774]
[1765201241259,0.05383905,138.35,138.31,3.17404774]
[1765201241956,3.07383905,138.35,138.31,3.17404774]
[1765201242157,3.07383905,138.35,138.31,0.05404774]
[1765201242461,0.05383905,138.35,138.31,3.17404774]
[1765201242661,0.05383905,138.35,138.32,3.12]
[1765201246061,3.07383905,138.35,138.31,0.05404774]
[1765201246663,3.07383905,138.35,138.31,3.17404774]
[1765201247665,3.07383905,138.35,138.31,0.05404774]
[1765201248053,0.05383905,138.35,138.31,3.17404774]
[1765201248969,0.05383905,138.35,138.31,9.68074774]
[1765201249166,0.05383905,138.35,138.32,3.12]
[1765201250265,0.05383905,138.35,138.32,9.6264]
[1765201250567,0.05383905,138.35,138.33,3.12]
[1765201250756,3.13,138.41,138.35,6.5052]
[1765201250958,3.13,138.41,138.36,3.12]
[1765201251155,61.48,138.42,138.36,3.12]
[1765201251564,61.48,138.42,138.38,3.12]
[1765201251760,0.04698803,138.41,138.39,3.16861322]
[1765201253867,0.04698803,138.41,138.39,0.04861322]
[1765201254569,0.04698803,138.41,138.39,3.16861322]
[1765201255364,0.04698803,138.41,138.39,9.67181322]
[1765201255666,6.68697197,138.49,138.39,9.67181322]
[1765201255667,3.13,138.5,138.41,3.12]
[1765201256671,0.05081688,138.47,138.44,3.1703232]
[1765201257665,0.05081688,138.47,138.44,9.6711232]
[1765201257866,0.05081688,138.47,138.45,3.12]
[1765201258758,0.05081688,138.47,138.45,9.6204]
[1765201258962,0.05081688,138.47,138.46,3.27]
[1765201259771,61.48,138.52,138.46,3.27]
[1765201260769,0.04618491,138.5,138.48,0.0462503]
[1765201260971,0.04618491,138.5,138.48,3.3162503]
[1765201261471,0.04618491,138.5,138.48,9.8152503]
[1765201261664,6.4957,138.56,138.49,3.27]
[1765201261960,3.25,138.56,138.52,6.4972]
[1765201262164,3.25,138.56,138.47,3.27]
[1765201262557,3.25,138.56,138.5,0.05248811]
[1765201262558,3.25,138.52,138.5,0.05248811]
[1765201263072,9.7475,138.52,138.5,0.05248811]
[1765201263270,3.25,138.51,138.5,0.05248811]
[1765201264965,9.7485,138.5,138.44,3.27]
[1765201265462,3.25,138.48,138.44,3.27]
[1765201265866,3.25,138.46,138.45,0.0532013]
[1765201266261,0.051965,138.47,138.45,3.3232013]
[1765201266874,0.051965,138.47,138.46,3.27]
[1765201267376,0.051965,138.47,138.45,0.0532013]
[1765201268071,3.301965,138.47,138.45,0.0532013]
[1765201268971,9.801765,138.47,138.45,0.0032013]
[1765201269172,3.25,138.45,138.39,3.27]
[1765201269579,3.25,138.45,138.4,9.7728]
[1765201269877,3.25,138.45,138.37,3.27]
[1765201270074,3.25,138.45,138.33,259.3241272]
[1765201270075,3.25,138.41,138.4,0.05497435]
[1765201270369,3.25,138.41,138.33,3.27]
[1765201271164,3.25,138.39,138.33,3.27]
[1765201271383,101.1536,138.41,138.35,0.04803638]
[1765201271384,3.29779728,138.37,138.35,0.04803638]
[1765201276367,0.04779728,138.37,138.35,0.04803638]
[1765201276578,0.04779728,138.37,138.35,3.31803638]
[1765201277079,64.71,138.43,138.35,3.31803638]
[1765201277281,6.5022,138.42,138.36,6.5046]
[1765201277582,9.7522,138.42,138.35,3.27]
[1765201278079,0.05277459,138.4,138.37,0.04903832]
[1765201278266,3.19277459,138.4,138.37,0.04903832]
[1765201279974,9.69597459,138.4,138.37,0.04903832]
[1765201280176,3.19277459,138.4,138.37,0.04903832]
[1765201281779,3.19277459,138.4,138.37,9.54323832]
[1765201281780,0.05277459,138.4,138.37,9.54323832]
[1765201281987,0.05277459,138.4,138.37,3.03903832]
[1765201283584,0.05277459,138.4,138.37,9.54323832]
[1765201283985,0.05277459,138.4,138.38,2.99]
[1765201284175,0.05277459,138.4,138.38,9.4936]
[1765201284377,0.05277459,138.4,138.39,2.99]
[1765201286490,3.14,138.48,138.41,2.99]
[1765201286680,3.14,138.48,138.41,104.1375]
[1765201286886,3.14,138.51,138.43,104.123]
[1765201287086,3.14,138.51,138.44,2.99]
[1765201287489,0.05182223,138.49,138.46,3.0439325]
[1765201287983,3.14,138.47,138.46,0.0539325]
[1765201288888,3.14,138.46,138.4,6.5027]
[1765201289292,9.6403,138.46,138.4,6.5027]
[1765201289890,0.0476293,138.44,138.42,0.05189679]
[1765201290387,3.1876293,138.44,138.42,0.05189679]
[1765201291586,3.14,138.43,138.42,0.05189679]
[1765201295092,9.6427,138.41,138.35,9.4949]
[1765201295393,3.14,138.41,138.35,2.99]
[1765201296085,0.05130356,138.39,138.37,0.04877505]
[1765201296392,9.69490356,138.39,138.37,0.04877505]
[1765201298288,0.05130356,138.39,138.37,3.03877505]
[1765201298995,0.05130356,138.39,138.37,9.54297505]
[1765201299198,0.05130356,138.39,138.38,2.99]
[1765201299897,0.05130356,138.39,138.37,9.54297505]
[1765201301400,0.05130356,138.39,138.37,0.04877505]
[1765201302800,3.19130356,138.39,138.37,0.04877505]
[1765201303998,3.14,138.36,138.32,9.4964]
[1765201304884,3.14,138.37,138.33,3.0440146]
[1765201305088,0.05506591,138.35,138.33,3.0440146]
[1765201306494,0.05506591,138.35,138.33,9.5501146]
[1765201308008,0.05506591,138.35,138.34,2.99]
[1765201308296,3.01,138.41,138.35,3.24]
[1765201308502,6.68697197,138.44,138.35,3.24]
[1765201308503,67.9624,138.42,138.35,3.24]
[1765201308703,61.46,138.42,138.35,3.24]
[1765201308889,3.01,138.44,138.39,9.7434]
[1765201309086,3.01,138.44,138.4,3.24]
[1765201309290,0.0510996,138.43,138.41,0.05042984]
[1765201310595,9.7126996,138.43,138.41,0.05042984]
[1765201310795,3.16,138.42,138.41,0.05042984]
[1765201312209,3.16,138.4,138.33,64.47]
[1765201312397,3.16,138.4,138.33,3.03]
[1765201312902,6.5035,138.39,138.34,6.5054]
[1765201313095,3.21124087,138.38,138.35,0.05324335]
[1765201314107,3.16,138.36,138.35,0.05324335]
[1765201314700,3.16,138.37,138.35,0.05324335]
[1765201315306,0.05124087,138.38,138.35,0.05324335]
[1765201315493,0.05124087,138.38,138.35,3.08324335]
[1765201315992,0.05124087,138.38,138.35,9.58844335]
[1765201316511,0.05124087,138.38,138.36,3.03]
[1765201318401,0.05124087,138.38,138.36,9.5348]
[1765201319108,0.05124087,138.38,138.35,3.08324335]
[1765201320303,3.05124087,138.38,138.35,0.05324335]
[1765201321011,3.05124087,138.38,138.35,3.12324335]
[1765201321012,0.05124087,138.38,138.35,3.12324335]
[1765201321308,0.05124087,138.38,138.36,9.5746]
[1765201323111,0.05124087,138.38,138.37,3.07]
[1765201323312,0.05124087,138.38,138.36,6.5046]
[1765201323313,3.0,138.41,138.38,9.5739]
[1765201323613,3.0,138.41,138.35,3.07]
[1765201323908,3.0,138.41,138.37,9.5742]
[1765201324206,61.46,138.44,138.34,101.1985]
[1765201324207,0.04595525,138.4,138.38,3.1241854]
[1765201325209,0.04595525,138.4,138.38,9.6279854]
[1765201325416,0.04595525,138.4,138.39,3.07]
[1765201327005,61.46,138.44,138.39,9.5733]
[1765201327314,61.46,138.44,138.4,3.07]
[1765201327512,64.46,138.44,138.4,3.07]
[1765201328110,0.05062135,138.43,138.4,3.07]
[1765201330225,0.05062135,138.43,138.41,9.5723]
[1765201330522,0.05062135,138.43,138.39,3.07]
[1765201331618,0.05062135,138.43,138.39,9.5731]
[1765201331819,0.05062135,138.43,138.4,3.07]
[1765201332211,3.05062135,138.43,138.4,3.07]
[1765201332416,0.05062135,138.43,138.4,3.07]
[1765201334314,0.05062135,138.43,138.41,9.5721]
[1765201335029,0.05062135,138.43,138.42,3.07]
[1765201335822,0.05062135,138.43,138.41,6.55598692]
[1765201336027,6.68697197,138.51,138.43,3.07]
[1765201336325,6.68697197,138.54,138.45,3.07]
[1765201336525,6.4966,138.54,138.48,9.569]
[1765201336730,6.4966,138.54,138.48,3.07]
[1765201336939,70.9562,138.55,138.49,6.4986]
[1765201337119,0.05490247,138.52,138.5,3.11849214]
[1765201338539,0.05490247,138.52,138.5,9.61659214]
[1765201338725,0.05490247,138.52,138.51,3.18]
[1765201341125,0.05490247,138.52,138.5,6.54659214]
[1765201341126,6.4943,138.59,138.54,3.18]
[1765201342121,61.44,138.6,138.54,3.18]
[1765201342122,0.05028897,138.58,138.55,3.18]
[1765201342324,0.05028897,138.58,138.55,3.23468913]
[1765201343335,3.29028897,138.58,138.55,0.05468913]
[1765201343528,0.05028897,138.58,138.55,3.23468913]
[1765201345036,0.05028897,138.58,138.55,9.73038913]
[1765201345223,0.05028897,138.58,138.56,3.18]
[1765201345923,3.29028897,138.58,138.55,0.05468913]
[1765201346124,0.05028897,138.58,138.55,3.23468913]
[1765201347228,3.29028897,138.58,138.55,0.05468913]
[1765201348028,9.78498897,138.58,138.55,0.05468913]
[1765201348336,3.24,138.57,138.55,0.05468913]
[1765201349236,9.7353,138.57,138.55,0.05468913]
[1765201349441,3.24,138.57,138.55,0.05468913]
[1765201351137,3.24,138.56,138.55,0.05468913]
[1765201353134,0.05028897,138.58,138.55,0.05468913]
[1765201353439,0.05028897,138.58,138.55,3.23468913]
[1765201353838,104.2028,138.67,138.55,3.23468913]
[1765201354031,3.24,138.65,138.56,3.18]
[1765201355143,0.05388648,138.62,138.59,3.23125452]
[1765201355846,3.29388648,138.62,138.59,0.05125452]
[1765201356138,3.24,138.6,138.59,0.05125452]
[1765201356930,0.05388648,138.62,138.54,3.18]
[1765201356931,9.7345,138.58,138.54,3.18]
[1765201357236,6.4945,138.58,138.54,3.18]
[1765201357933,0.05144016,138.57,138.55,3.22550684]
[1765201359042,0.05144016,138.57,138.55,9.72130684]
[1765201359234,3.29144016,138.57,138.55,0.04550684]
[1765201359836,3.24,138.55,138.49,3.18]
[1765201360845,0.05363052,138.53,138.52,3.18]
[1765201361144,0.05458711,138.54,138.52,3.18]
[1765201361642,3.29458711,138.54,138.51,6.54326609]
[1765201361839,0.05458711,138.54,138.51,9.72326609]
[1765201362731,0.05458711,138.54,138.53,3.18]
[1765201363242,3.24,138.61,138.53,3.18]
[1765201363243,6.4939,138.6,138.53,3.18]
[1765201363441,6.4939,138.6,138.54,3.18]
[1765201363745,6.493,138.62,138.54,3.18]
[1765201364043,6.493,138.62,138.58,3.18]
[1765201364044,3.24,138.62,138.58,3.18]
[1765201364245,0.04834176,138.59,138.58,3.18]
[1765201364441,0.05403267,138.6,138.58,3.18]
[1765201365439,0.05403267,138.6,138.58,9.6742]
[1765201365745,0.05403267,138.6,138.59,3.18]
[1765201367143,1.25566039,138.66,138.62,9.6726]
[1765201367341,9.7298,138.68,138.62,9.6726]
[1765201368144,9.7298,138.68,138.64,0.051186]
[1765201368349,0.04605677,138.66,138.64,0.051186]
[1765201369148,0.04605677,138.66,138.64,3.301186]
[1765201381354,0.04605677,138.66,138.64,0.051186]
[1765201381550,0.04605677,138.66,138.64,3.031186]
[1765201384455,1.25513958,138.72,138.64,0.051186]
[1765201384662,3.04,138.74,138.66,2.98]
[1765201384956,3.04,138.74,138.67,2.98]
[1765201385162,6.4864,138.76,138.7,9.4688]
[1765201385457,3.04,138.76,138.71,2.98]
[1765201385659,0.05335685,138.74,138.72,3.03424702]
[1765201386158,3.04,138.79,138.72,3.03424702]
[1765201386357,3.04,138.79,138.74,9.4669]
[1765201386661,3.04,138.79,138.74,2.98]
[1765201387064,3.09165766,138.78,138.75,0.0480477]
[1765201387861,0.05165766,138.78,138.75,3.0280477]
[1765201388761,3.09165766,138.78,138.75,0.0480477]
[1765201389063,9.5258,138.77,138.75,0.0480477]
[1765201389264,3.04,138.77,138.75,0.0480477]
[1765201390062,0.05165766,138.78,138.75,0.0480477]
[1765201390063,3.09165766,138.78,138.75,0.0480477]
[1765201390464,9.57705766,138.78,138.75,0.0480477]
[1765201390665,3.04,138.77,138.75,0.0480477]
[1765201391162,3.04,138.76,138.71,2.98]
[1765201391355,3.04,138.76,138.68,2.98]
[1765201391857,6.4873,138.74,138.68,2.98]
[1765201392061,3.09195156,138.72,138.7,0.05010575]
[1765201393670,3.04,138.71,138.7,0.05010575]
[1765201396872,3.04,138.69,138.62,2.98]
[1765201397371,3.04,138.65,138.6,2.98]
[1765201397761,3.04,138.65,138.61,0.04621784]
[1765201397968,0.04602972,138.64,138.61,0.04621784]
[1765201398169,0.04602972,138.64,138.61,3.24621784]
[1765201399678,3.24602972,138.64,138.61,0.04621784]
[1765201401679,3.24602972,138.64,138.54,162.3525]
[1765201401680,3.2,138.62,138.54,3.2]
[1765201402779,3.2,138.62,138.57,0.04760635]
[1765201402780,9.74222583,138.59,138.57,0.04760635]
[1765201403382,3.24802583,138.59,138.57,0.04760635]
[1765201403980,0.04802583,138.59,138.57,0.04760635]
[1765201404572,0.04802583,138.59,138.57,3.24760635]
[1765201405179,100.9654,138.67,138.59,3.2]
[1765201405180,3.2,138.67,138.59,3.2]
[1765201405578,3.2,138.67,138.59,9.6939]
[1765201405980,3.2,138.67,138.59,3.2]
[1765201406173,3.24954377,138.64,138.62,0.05213271]
[1765201406388,0.04954377,138.64,138.62,0.05213271]
[1765201407273,3.24954377,138.64,138.62,0.05213271]
[1765201407475,3.2,138.63,138.62,0.05213271]
[1765201407682,3.2,138.63,138.56,3.2]
[1765201408280,3.2,138.6,138.56,3.2]
[1765201408779,0.05000301,138.59,138.57,0.04848703]
[1765201410493,9.74420301,138.59,138.57,0.04848703]
[1765201410687,3.2,138.58,138.57,0.04848703]
[1765201411591,6.4961,138.55,138.51,3.2]
[1765201411992,6.4961,138.55,138.5,96.73938731]
[1765201411993,3.2,138.54,138.5,96.73938731]
[1765201412382,0.05038326,138.53,138.51,0.05230217]
[1765201412690,3.25038326,138.53,138.51,0.05230217]
[1765201413174,0.05038326,138.53,138.51,0.05230217]
[1765201413375,0.05038326,138.53,138.51,3.25230217]
[1765201415490,67.8546,138.58,138.53,3.2]
[1765201415491,61.36,138.58,138.53,3.2]
[1765201415890,3.2,138.57,138.53,3.2]
[1765201416193,3.2,138.57,138.5,9.6979]
[1765201416395,0.05324055,138.55,138.52,3.25336163]
[1765201417599,0.05324055,138.55,138.52,9.75056163]
[1765201417786,0.05324055,138.55,138.53,3.2]
[1765201424401,3.25324055,138.55,138.52,0.05336163]
[1765201425111,0.05324055,138.55,138.52,3.25336163]
[1765201427598,0.05324055,138.55,138.53,3.2]
[1765201430610,3.18324055,138.55,138.46,3.11]
[1765201430793,3.13,138.54,138.46,3.11]
[1765201431704,0.04599713,138.51,138.49,0.04878809]